bitfinex/quotes_SOLUSD_20250216
["timestamp","ask_amount","ask_price","bid_price","bid_amount"]
[1739733801549,1.0,187.8,187.75,15.27306691]
[1739733802573,1.0,187.8,187.76,15.27306691]
[1739733802749,5.7924,187.8,187.76,15.27306691]
[1739733802951,1.0,187.79,187.76,15.27306691]
[1739733803450,1.0,187.79,187.77,15.27306691]
[1739733803854,1.063,187.82,187.78,15.27306691]
[1739733804041,1.063,187.82,187.79,15.27306691]
[1739733804042,0.063,187.82,187.79,15.27306691]
[1739733804474,0.063,187.82,187.81,15.27306691]
[1739733806450,0.063,187.82,187.81,20.59756691]
[1739733806651,0.063,187.82,187.81,15.27306691]
[1739733807260,0.063,187.82,187.81,20.59756691]
[1739733807460,0.063,187.82,187.81,15.27306691]
[1739733808375,0.063,187.82,187.8,15.27306691]
[1739733808676,0.063,187.82,187.81,15.27306691]
[1739733810683,0.063,187.82,187.81,28.68491544]
[1739733810854,0.063,187.82,187.81,34.00941544]
[1739733811254,0.063,187.82,187.81,34.80777942]
[1739733811466,1.0,187.92,187.83,1.0]
[1739733811650,1.0,187.93,187.89,15.27306691]
[1739733811849,88.0885,187.95,187.9,15.27306691]
[1739733812054,1.0,187.94,187.91,15.27306691]
[1739733812277,1.0,187.95,187.91,15.27306691]
[1739733812977,1.5283,187.96,187.91,15.27306691]
[1739733812978,1.0,187.94,187.91,15.27306691]
[1739733813382,1.0,187.95,187.91,15.27306691]
[1739733813589,6.3165,187.96,187.84,15.27306691]
[1739733813590,1.0,187.88,187.84,15.27306691]
[1739733813749,1.0,187.88,187.83,15.27306691]
[1739733814066,1.0,187.87,187.83,15.27306691]
[1739733814266,1.0,187.88,187.83,15.27306691]
[1739733814862,1.0,187.87,187.83,15.27306691]
[1739733815685,1.0,187.85,187.81,15.27306691]
[1739733815854,1.0,187.85,187.8,15.27306691]
[1739733816055,1.0,187.83,187.79,15.27306691]
[1739733816449,1.0,187.82,187.81,0.03]
[1739733816665,1.0,187.83,187.81,0.03]
[1739733818172,1.0,187.82,187.81,0.03]
[1739733819187,5.7916,187.83,187.81,0.03]
[1739733819377,1.0,187.82,187.81,0.03]
[1739733821262,1.0,187.86,187.81,15.30306691]
[1739733821466,1.0,187.84,187.81,15.30306691]
[1739733821662,1.0,187.82,187.81,0.03]
[1739733825081,1.0,187.84,187.81,15.30306691]
[1739733825270,1.0,187.86,187.82,15.27306691]
[1739733825470,1.0,187.87,187.83,15.27306691]
[1739733825690,1.0,187.89,187.85,15.27306691]
[1739733826692,1.0,187.89,187.85,20.59636691]
[1739733826889,1.0,187.9,187.87,15.27306691]
[1739733827099,1.0,187.91,187.87,15.27306691]
[1739733827471,1.0,187.92,187.87,15.27306691]
[1739733827672,1.0,187.89,187.87,15.27306691]
[1739733828482,1.0,187.91,187.87,15.27306691]
[1739733828880,1.0,187.89,187.86,15.27306691]
[1739733829198,1.0,187.89,187.85,15.27306691]
[1739733829498,1.063,187.88,187.87,15.27306691]
[1739733830276,0.063,187.88,187.87,15.27306691]
[1739733830679,0.063,187.88,187.87,20.59586691]
[1739733831008,0.063,187.88,187.87,34.00771544]
[1739733831213,0.063,187.88,187.87,41.29804111]
[1739733831800,0.063,187.88,187.87,21.76526691]
[1739733832180,0.063,187.88,187.87,27.08806691]
[1739733832901,0.063,187.88,187.87,21.76526691]
[1739733833405,0.063,187.88,187.87,27.08806691]
[1739733833869,0.063,187.88,187.87,40.49991544]
[1739733835194,0.063,187.88,187.86,15.27306691]
[1739733836292,0.063,187.88,187.87,15.27306691]
[1739733839380,0.063,187.88,187.86,15.27306691]
[1739733839597,1.063,187.88,187.83,21.91466691]
[1739733839789,1.0,187.85,187.82,15.27306691]
[1739733840408,1.0,187.84,187.81,0.03]
[1739733841916,1.0,187.83,187.81,0.03]
[1739733842111,1.0,187.82,187.81,0.03]
[1739733843905,5.7918,187.82,187.81,0.03]
[1739733845482,21.06486691,187.82,187.81,0.03]
[1739733847014,1.0,187.82,187.81,0.03]
[1739733847403,21.06486691,187.82,187.81,0.03]
[1739733849299,1.0,187.82,187.81,0.03]
[1739733850214,0.5,187.82,187.81,0.03]
[1739733850411,0.5,187.83,187.81,0.03]
[1739733851021,0.5,187.84,187.81,0.03]
[1739733851225,0.5,187.83,187.81,0.03]
[1739733851600,0.5,187.84,187.81,0.03]
[1739733852103,0.5,187.83,187.81,0.03]
[1739733852810,0.5,187.82,187.81,0.03]
[1739733854821,0.5,187.82,187.81,15.30306691]
[1739733855121,0.063,187.85,187.81,15.30306691]
[1739733855321,0.063,187.85,187.84,15.27306691]
[1739733856402,0.063,187.85,187.83,15.27306691]
[1739733856725,0.063,187.85,187.84,15.27306691]
[1739733857112,0.063,187.85,187.84,14.77306691]
[1739733858923,0.563,187.85,187.84,14.77306691]
[1739733859807,0.063,187.85,187.84,14.77306691]
[1739733860128,0.063,187.85,187.84,33.50851544]
[1739733860631,0.063,187.85,187.84,34.50851544]
[1739733861123,0.063,187.85,187.84,33.50851544]
[1739733861313,0.063,187.85,187.84,34.50851544]
[1739733863005,0.063,187.88,187.86,1.0]
[1739733863205,0.063,187.88,187.87,35.80580564]
[1739733863622,0.063,187.88,187.87,37.34670564]
[1739733863928,0.063,187.88,187.87,43.72610564]
[1739733864131,0.5,187.99,187.91,1.0]
[1739733864342,0.063,188.0,187.96,15.27306691]
[1739733864506,0.063,188.0,187.98,15.27306691]
[1739733864707,0.5,187.99,187.98,15.27306691]
[1739733865010,0.5,187.99,187.98,28.68491544]
[1739733865212,0.063,188.0,187.98,15.27306691]
[1739733865533,0.063,188.0,187.99,15.27306691]
[1739733865723,0.063,188.0,187.98,15.27306691]
[1739733866729,0.063,188.0,187.99,15.27306691]
[1739733869405,0.063,188.0,187.99,34.00431544]
[1739733869823,0.063,188.0,187.99,28.68491544]
[1739733870211,0.063,188.0,187.99,34.00431544]
[1739733870838,0.063,188.0,187.99,28.68491544]
[1739733872936,0.063,188.0,187.99,34.80194876]
[1739733878634,0.063,188.0,187.99,28.68491544]
[1739733879410,0.063,188.0,187.99,34.00431544]
[1739733879632,0.063,188.0,187.99,34.80193375]
[1739733881543,0.063,188.0,187.99,35.80193375]
[1739733882646,0.063,188.0,187.99,34.80193375]
[1739733883345,0.063,188.0,187.99,35.80193375]
[1739733884840,0.0001,188.0,187.99,30.30376366]
[1739733885142,0.0001,188.0,187.99,69.40335094]
[1739733886147,0.0001,188.0,187.99,30.30376366]
[1739733887946,0.0001,188.0,187.99,29.30376366]
[1739733888144,0.0001,188.0,187.99,9.77489682]
[1739733889547,0.0001,188.0,187.99,28.50614535]
[1739733889723,0.0001,188.0,187.99,29.30376277]
[1739733891950,0.0001,188.0,187.99,28.50614535]
[1739733892149,0.0001,188.0,187.99,28.53614535]
[1739733892648,0.0001,188.0,187.99,29.33372427]
[1739733893765,0.0001,188.0,187.99,30.33372427]
[1739733894217,0.0001,188.0,187.99,69.43331155]
[1739733896227,0.0001,188.0,187.99,30.33372427]
[1739733896530,0.0001,188.0,187.99,29.33372427]
[1739733897024,0.0001,188.0,187.99,28.53614535]
[1739733898239,0.0001,188.0,187.99,23.21674535]
[1739733898523,0.0001,188.0,187.99,0.03]
[1739733898725,0.5001,188.0,187.99,0.03]
[1739733900266,0.5001,188.0,187.99,23.21674535]
[1739733900569,0.5001,188.0,187.99,0.03]
[1739733901443,0.5001,188.0,187.99,28.72551769]
[1739733901648,0.5001,188.0,187.99,13.44184853]
[1739733902155,0.0001,188.0,187.99,18.76124853]
[1739733902466,0.0001,188.0,187.99,34.04491769]
[1739733903149,0.0001,188.0,187.99,34.84252378]
[1739733904238,0.0001,188.0,187.99,35.84252378]
[1739733905058,0.0001,188.0,187.99,51.12619294]
[1739733905642,15.0001,188.0,187.99,51.12619294]
[1739733906166,0.063,188.04,188.01,1.0]
[1739733906369,0.063,188.04,188.03,28.69551769]
[1739733907245,0.063,188.04,188.03,34.01381769]
[1739733912444,0.063,188.04,188.03,35.01381769]
[1739733912845,0.0001,188.04,188.03,35.01381769]
[1739733913960,0.063,188.07,188.06,34.41184853]
[1739733914162,0.063,188.07,188.06,50.49268855]
[1739733914769,0.063,188.07,188.06,55.81008855]
[1739733916969,0.0001,188.07,188.06,55.81008855]
[1739733920747,0.063,188.09,188.08,1.0]
[1739733920967,0.0001,188.09,188.08,45.77626078]
[1739733921684,0.03862019,188.17,188.12,21.0]
[1739733921856,0.03862019,188.17,188.16,28.69551769]
[1739733922061,0.03862019,188.17,188.16,30.49237543]
[1739733922461,0.03862019,188.17,188.16,35.80697543]
[1739733922665,0.03862019,188.17,188.16,30.27881035]
[1739733924584,0.03862019,188.17,188.16,35.76635477]
[1739733925057,0.063,188.19,188.18,21.0]
[1739733925257,0.563,188.26,188.22,14.41184853]
[1739733925258,0.063,188.26,188.22,14.41184853]
[1739733925457,0.063,188.26,188.25,28.65489703]
[1739733925880,0.063,188.26,188.25,33.96689703]
[1739733926296,0.563,188.26,188.22,15.2430485]
[1739733926476,0.5,188.24,188.22,15.2430485]
[1739733926782,0.5,188.23,188.21,28.65489703]
[1739733929689,0.5,188.2,188.18,13.41184853]
[1739733931789,0.5,188.22,188.2,13.41184853]
[1739733931986,15.3060485,188.26,188.22,18.72464853]
[1739733931987,0.5,188.25,188.22,18.72464853]
[1739733932301,0.5,188.24,188.23,15.2430485]
[1739733933093,0.5,188.25,188.24,13.41184853]
[1739733933275,0.5,188.25,188.22,15.2430485]
[1739733933588,0.5,188.23,188.22,28.65489703]
[1739733933799,0.5,188.24,188.22,28.65489703]
[1739733933965,0.5,188.24,188.23,15.2430485]
[1739733934165,0.563,188.26,188.23,28.65489703]
[1739733934367,0.5,188.24,188.23,13.41184853]
[1739733934685,0.5,188.24,188.22,15.2430485]
[1739733935191,0.5,188.24,188.22,20.5558485]
[1739733935988,0.5,188.25,188.23,15.2430485]
[1739733936192,0.5,188.25,188.22,20.5558485]
[1739733937089,0.063,188.26,188.22,20.5558485]
[1739733937090,0.5,188.24,188.22,20.5558485]
[1739733938390,0.5,188.24,188.19,15.2430485]
[1739733938593,0.5,188.21,188.17,15.2430485]
[1739733938800,0.5,188.21,188.18,15.2430485]
[1739733939184,0.5,188.21,188.19,15.2430485]
[1739733939789,0.5,188.24,188.21,13.41184853]
[1739733939973,0.5,188.24,188.22,15.2430485]
[1739733940169,0.5,188.23,188.21,15.2430485]
[1739733940389,0.5,188.22,188.19,15.2430485]
[1739733940695,0.5,188.21,188.2,13.41184853]
[1739733941278,0.5,188.21,188.17,15.2430485]
[1739733941484,0.5,188.2,188.17,15.2430485]
[1739733942187,0.5,188.2,188.19,15.2430485]
[1739733942501,0.5,188.21,188.19,28.65489703]
[1739733942705,0.5,188.21,188.2,15.2430485]
[1739733943397,0.5,188.21,188.2,20.5564485]
[1739733943691,0.5,188.21,188.2,33.96829703]
[1739733944882,0.5,188.21,188.19,5.3137]
[1739733945086,0.5,188.2,188.19,5.3137]
[1739733945312,0.5,188.2,188.19,18.72554853]
[1739733945479,0.35980295,188.2,188.19,18.72554853]
[1739733946605,0.35980295,188.24,188.19,34.76546305]
[1739733946804,0.35980295,188.24,188.21,13.41184853]
[1739733947011,0.35980295,188.23,188.21,13.41184853]
[1739733947184,0.35980295,188.22,188.21,13.41184853]
[1739733948080,0.35980295,188.22,188.21,18.72504853]
[1739733948502,0.35980295,188.23,188.19,20.5565485]
[1739733948690,0.35980295,188.2,188.19,20.5565485]
[1739733949093,0.35980295,188.23,188.2,13.41184853]
[1739733949297,0.35980295,188.23,188.21,15.2430485]
[1739733950207,0.35980295,188.23,188.21,20.5561485]
[1739733950982,0.35980295,188.23,188.21,5.3131]
[1739733951185,0.35980295,188.23,188.21,18.72494853]
[1739733951714,0.35980295,188.22,188.21,18.72494853]
[1739733951919,0.35980295,188.23,188.21,18.72494853]
[1739733952416,0.35980295,188.22,188.21,18.72494853]
[1739733952588,0.35980295,188.22,188.21,13.41184853]
[1739733953695,0.35980295,188.23,188.21,13.41184853]
[1739733954305,0.35980295,188.22,188.21,13.41184853]
[1739733955122,0.35980295,188.23,188.21,18.72494853]
[1739733955921,0.35980295,188.25,188.22,13.41184853]
[1739733956110,0.35980295,188.25,188.22,9.75709659]
[1739733956303,0.35980295,188.24,188.22,9.75709659]
[1739733957199,0.35980295,188.25,188.22,9.75709659]
[1739733957398,0.35980295,188.24,188.23,18.72444853]
[1739733957807,0.35980295,188.25,188.23,18.72444853]
[1739733958212,0.35980295,188.24,188.23,18.72444853]
[1739733958395,0.35980295,188.24,188.23,13.41184853]
[1739733958825,0.35980295,188.2,188.19,5.3767]
[1739733959726,0.35980295,188.2,188.19,28.54564512]
[1739733961835,0.35980295,188.2,188.19,13.47484853]
[1739733962124,0.35980295,188.2,188.19,0.063]
[1739733963727,0.063,188.26,188.19,23.23194512]
[1739733963728,0.35980295,188.21,188.19,23.23194512]
[1739733964533,0.35980295,188.2,188.19,23.23194512]
[1739733964840,0.35980295,188.21,188.19,13.47484853]
[1739733965640,0.063,188.26,188.19,23.23194512]
[1739733965641,0.35980295,188.22,188.19,23.23194512]
[1739733965803,0.35980295,188.23,188.21,23.16894512]
[1739733966142,0.35980295,188.25,188.23,13.41184853]
[1739733966301,0.35980295,188.24,188.23,13.41184853]
[1739733966504,0.35980295,188.24,188.21,23.16894512]
[1739733966803,0.35980295,188.25,188.22,23.16894512]
[1739733967016,0.42280295,188.26,188.23,9.75709659]
[1739733968238,0.42280295,188.26,188.24,5.3123]
[1739733968941,0.063,188.26,188.24,5.3123]
[1739733969126,0.063,188.26,188.25,13.41184853]
[1739733969510,0.063,188.26,188.25,23.16894512]
[1739733970122,0.063,188.26,188.25,23.96549905]
[1739733970429,0.063,188.26,188.25,29.27749905]
[1739733971819,0.42280295,188.26,188.25,13.41184853]
[1739733972524,0.42280295,188.26,188.24,13.41184853]
[1739733972719,0.42280295,188.26,188.24,18.72414853]
[1739733973419,0.063,188.26,188.25,9.75709659]
[1739733974041,0.42280295,188.26,188.24,28.48124512]
[1739733974247,0.063,188.26,188.24,28.48124512]
[1739733974542,0.063,188.26,188.25,9.75709659]
[1739733974739,0.063,188.26,188.25,15.06909659]
[1739733975117,0.063,188.26,188.25,15.8656363]
[1739733975318,0.063,188.26,188.25,15.06909659]
[1739733976145,0.063,188.26,188.25,28.48094512]
[1739733978628,0.063,188.28,188.26,13.41184853]
[1739733978828,0.063,188.28,188.27,23.96532664]
[1739733980251,0.063,188.28,188.27,29.27682664]
[1739733980453,0.42280295,188.28,188.27,28.48044512]
[1739733984022,0.063,188.28,188.27,28.48044512]
[1739733985556,0.063,188.28,188.27,29.27682806]
[1739733988160,0.0001,188.28,188.27,29.27682806]
[1739733989334,0.0001,188.29,188.28,14.41184853]
[1739733989649,0.0001,188.29,188.28,63.19733148]
[1739733989832,0.0001,188.31,188.3,20.0]
[1739733990041,0.0001,188.31,188.3,44.96510843]
[1739733991359,0.0001,188.31,188.3,50.27570843]
[1739733991849,0.0001,188.31,188.3,51.80920843]
[1739733993431,0.0001,188.31,188.3,49.27570843]
[1739733994051,0.0001,188.31,188.3,50.27570843]
[1739733997053,0.0001,188.31,188.3,50.33870843]
[1739733997856,0.0001,188.31,188.3,49.33870843]
[1739733998653,0.0001,188.31,188.3,50.33870843]
[1739733999051,0.0001,188.31,188.3,49.33870843]
[1739734000561,0.0001,188.31,188.3,18.78544853]
[1739734000868,0.35990295,188.31,188.3,18.78544853]
[1739734004671,0.0001,188.31,188.3,29.33889878]
[1739734005971,0.0001,188.31,188.3,28.54254512]
[1739734007255,0.35990295,188.31,188.3,13.47484853]
[1739734007567,0.35990295,188.31,188.3,0.063]
[1739734008177,0.0001,188.31,188.3,13.47484853]
[1739734008352,0.0001,188.31,188.3,23.23194512]
[1739734009880,0.0001,188.31,188.3,28.54254512]
[1739734010785,0.0001,188.31,188.3,29.338827]
[1739734011881,0.0001,188.31,188.3,28.54254512]
[1739734013584,0.0001,188.31,188.3,29.33876186]
[1739734015070,0.0001,188.31,188.3,30.33876186]
[1739734018080,0.0001,188.31,188.3,29.33876186]
[1739734018288,0.0001,188.31,188.3,28.54254512]
[1739734020884,0.35990295,188.31,188.3,0.063]
[1739734034800,0.35990295,188.31,188.3,5.3736]
[1739734038201,0.0001,188.31,188.3,5.3736]
[1739734039301,0.35990295,188.31,188.3,5.3736]
[1739734043512,0.35990295,188.31,188.3,18.78544853]
[1739734054026,0.0001,188.31,188.3,18.78544853]
[1739734054231,0.35990295,188.31,188.3,18.78544853]
[1739734054521,0.0001,188.31,188.3,28.54254512]
[1739734054901,0.0001,188.31,188.3,29.33870393]
[1739734055710,0.0001,188.31,188.3,19.58160734]
[1739734056203,0.0001,188.31,188.3,29.33870393]
[1739734059327,0.0001,188.31,188.3,30.33870393]
[1739734060200,0.03,188.39,188.38,20.0]
[1739734060405,0.03,188.39,188.38,30.55298418]
[1739734060699,0.03,188.39,188.38,23.96483271]
[1739734060900,0.38980295,188.39,188.38,13.41184853]
[1739734062209,0.03,188.39,188.38,28.47734512]
[1739734062539,0.03,188.39,188.38,29.27334138]
[1739734065524,0.01280295,188.46,188.39,13.41184853]
[1739734065731,0.01280295,188.46,188.41,13.41184853]
[1739734066318,0.01280295,188.46,188.43,13.41184853]
[1739734068109,0.01280295,188.46,188.43,23.16894512]
[1739734068337,0.01280295,188.46,188.44,5.3067]
[1739734070129,0.01280295,188.46,188.45,5.3064]
[1739734074136,0.01280295,188.46,188.45,18.71824853]
[1739734077640,0.01280295,188.46,188.45,13.41184853]
[1739734078936,9.76989954,188.46,188.42,5.3072]
[1739734079128,9.75709659,188.45,188.42,5.3072]
[1739734079328,9.75709659,188.45,188.43,13.41184853]
[1739734080355,9.76989954,188.46,188.43,13.41184853]
[1739734080854,0.01280295,188.46,188.43,13.41184853]
[1739734081153,0.01280295,188.46,188.43,5.307]
[1739734083760,0.01280295,188.46,188.44,13.41184853]
[1739734083964,0.01280295,188.46,188.44,23.16894512]
[1739734087361,0.01280295,188.46,188.45,18.71824853]
[1739734102265,0.01280295,188.46,188.45,28.47534512]
[1739734102474,0.01280295,188.46,188.45,18.71824853]
[1739734105060,9.29989954,188.48,188.46,13.41184853]
[1739734105772,9.29989954,188.48,188.44,5.3067]
[1739734107468,0.03,188.46,188.44,5.3067]
[1739734113581,9.75709659,188.45,188.43,0.063]
[1739734114186,0.03,188.46,188.43,0.063]
[1739734114390,0.03,188.46,188.43,13.47484853]
[1739734115449,0.03,188.46,188.43,0.063]
[1739734116983,0.03,188.46,188.43,5.37]
[1739734123277,0.03,188.46,188.44,13.41184853]
[1739734123581,0.03,188.46,188.45,5.3064]
[1739734137096,0.03,188.46,188.43,0.063]
[1739734137270,0.03,188.46,188.43,5.37]
[1739734137470,0.03,188.46,188.44,13.41184853]
[1739734139290,0.03,188.46,188.43,13.47484853]
[1739734139495,0.03,188.46,188.44,5.3067]
[1739734141999,0.03,188.46,188.44,5.3697]
[1739734158719,0.03,188.46,188.44,0.063]
[1739734158720,9.78709659,188.46,188.44,0.063]
[1739734158900,9.75709659,188.45,188.44,0.063]
[1739734160825,15.06349659,188.45,188.44,0.063]
[1739734163130,1.0,188.43,188.38,0.063]
[1739734163321,9.75709659,188.39,188.38,0.063]
[1739734164726,15.06519659,188.39,188.38,0.063]
[1739734164902,1.0,188.38,188.3,0.063]
[1739734165106,9.75709659,188.31,188.3,0.063]
[1739734168933,9.75709659,188.32,188.3,0.063]
[1739734169727,9.75709659,188.31,188.3,0.063]
[1739734172234,15.06739659,188.31,188.3,0.063]
[1739734172437,9.75709659,188.31,188.3,0.063]
[1739734172739,9.75709659,188.32,188.3,0.063]
[1739734173032,1.5887,188.33,188.3,0.063]
[1739734173033,9.75709659,188.31,188.3,0.063]
[1739734174329,15.06739659,188.31,188.3,0.063]
[1739734177446,17.06739659,188.31,188.3,0.013]
[1739734179229,9.75709659,188.31,188.3,0.013]
[1739734179750,15.06739659,188.31,188.3,0.013]
[1739734180425,9.75709659,188.31,188.3,0.013]
[1739734181045,92.05709659,188.32,188.3,0.013]
[1739734181242,9.75709659,188.35,188.3,0.013]
[1739734184451,9.75709659,188.36,188.3,13.42484853]
[1739734184641,9.75709659,188.36,188.3,0.013]
[1739734184841,9.75709659,188.36,188.3,13.42484853]
[1739734185336,9.75709659,188.37,188.3,23.18194512]
[1739734185654,9.75709659,188.36,188.3,13.42484853]
[1739734186151,9.75709659,188.35,188.3,0.013]
[1739734186653,9.75709659,188.33,188.3,0.013]
[1739734186856,9.75709659,188.32,188.3,0.013]
[1739734187757,9.75709659,188.33,188.3,0.013]
[1739734188055,9.75709659,188.33,188.29,5.2439]
[1739734188433,9.75709659,188.34,188.29,5.2439]
[1739734188733,9.75709659,188.36,188.3,23.16894512]
[1739734190039,9.75709659,188.36,188.31,5.3103]
[1739734191844,9.75709659,188.37,188.31,5.3103]
[1739734193062,9.75709659,188.36,188.31,5.3103]
[1739734193364,1.6742,188.38,188.31,5.3103]
[1739734193365,9.75709659,188.37,188.31,5.3103]
[1739734195761,9.75709659,188.36,188.31,5.3103]
[1739734197254,9.75709659,188.35,188.31,5.3103]
[1739734197454,9.75709659,188.35,188.3,18.72234853]
[1739734197849,9.75709659,188.35,188.28,9.75709659]
[1739734198061,9.75709659,188.34,188.29,5.3108]
[1739734198360,5.3087,188.37,188.27,11.916]
[1739734198361,9.75709659,188.33,188.27,11.916]
[1739734198550,9.75709659,188.33,188.27,11.796]
[1739734199247,9.75709659,188.33,188.28,13.41184853]
[1739734200449,9.75709659,188.33,188.29,5.3109]
[1739734200653,9.75709659,188.35,188.29,5.3109]
[1739734201843,9.75709659,188.35,188.29,5.3739]
[1739734202033,9.75709659,188.34,188.29,5.3739]
[1739734202663,9.75709659,188.33,188.29,5.3739]
[1739734204164,9.75709659,188.33,188.29,0.063]
[1739734204749,9.75709659,188.3,188.29,0.063]
[1739734205071,11.36059659,188.3,188.29,0.063]
[1739734205272,13.36059659,188.3,188.29,0.063]
[1739734205945,20.0,188.27,188.26,0.063]
[1739734206141,29.75709659,188.27,188.26,0.063]
[1739734206649,9.75709659,188.28,188.26,0.063]
[1739734206853,11.36059659,188.3,188.26,0.063]
[1739734207366,9.75709659,188.27,188.26,0.063]
[1739734207740,29.75709659,188.27,188.26,0.063]
[1739734208469,35.06859659,188.27,188.26,0.063]
[1739734208662,37.06859659,188.27,188.26,0.063]
[1739734212070,9.75709659,188.27,188.26,0.063]
[1739734212250,9.75709659,188.29,188.26,0.063]
[1739734212445,1.6035,188.3,188.26,0.063]
[1739734212446,9.75709659,188.3,188.26,0.063]
[1739734213073,9.75709659,188.29,188.26,0.063]
[1739734213469,9.75709659,188.32,188.26,15.82639659]
[1739734213967,9.75709659,188.33,188.27,9.75709659]
[1739734214266,9.75709659,188.33,188.28,5.3112]
[1739734214847,9.75709659,188.35,188.28,15.06829659]
[1739734215172,0.03,188.33,188.28,15.06829659]
[1739734215679,0.03,188.33,188.29,23.16894512]
[1739734215980,0.03,188.33,188.31,23.16894512]
[1739734216175,0.03,188.33,188.32,5.3101]
[1739734217150,0.03,188.33,188.31,13.41184853]
[1739734217651,0.03,188.33,188.29,9.75709659]
[1739734218765,0.03,188.33,188.29,9.65709659]
[1739734219152,0.03,188.33,188.31,13.41184853]
[1739734224279,0.03,188.33,188.27,15.06829659]
[1739734224670,0.03,188.33,188.26,6.0693]
[1739734224671,9.75709659,188.32,188.26,6.0693]
[1739734224865,9.75709659,188.29,188.26,0.063]
[1739734225175,0.03,188.33,188.26,0.063]
[1739734225176,9.75709659,188.28,188.26,0.063]
[1739734225583,9.75709659,188.27,188.26,0.063]
[1739734228058,1.0,188.32,188.26,0.063]
[1739734228059,9.75709659,188.32,188.26,0.063]
[1739734228274,0.03,188.33,188.26,9.82009659]
[1739734228275,9.78709659,188.33,188.26,9.82009659]
[1739734228478,0.03,188.33,188.27,9.75709659]
[1739734228687,0.03,188.33,188.3,9.75709659]
[1739734228858,0.03,188.33,188.31,9.75709659]
[1739734229277,0.03,188.33,188.32,9.75709659]
[1739734230089,0.03,188.33,188.32,15.06719659]
[1739734230591,0.03,188.33,188.32,20.53493155]
[1739734232385,0.03,188.33,188.32,33.94678008]
[1739734241404,0.03,188.33,188.32,18.72194853]
[1739734241989,0.03,188.33,188.32,33.94678008]
[1739734245381,0.03,188.37,188.32,33.94678008]
[1739734245382,0.03,188.37,188.36,28.63668008]
[1739734246006,0.03,188.37,188.36,15.22483155]
[1739734246215,0.03,188.37,188.35,35.22483155]
[1739734246702,0.03,188.37,188.34,13.41184853]
[1739734247195,0.03,188.37,188.34,18.72114853]
[1739734247687,0.03,188.37,188.34,5.3093]
[1739734247897,15.22483155,188.36,188.3,5.3106]
[1739734248080,15.22483155,188.33,188.29,0.063]
[1739734248688,15.22483155,188.34,188.29,5.3739]
[1739734248917,15.22483155,188.35,188.29,20.59873155]
[1739734249089,0.03,188.37,188.32,15.22483155]
[1739734249896,0.03,188.37,188.33,15.22483155]
[1739734250207,0.03,188.37,188.32,28.63668008]
[1739734251293,0.03,188.37,188.34,15.22483155]
[1739734251908,0.03,188.37,188.33,20.53463155]
[1739734252801,0.03,188.37,188.36,15.22483155]
[1739734253007,0.03,188.37,188.35,15.22483155]
[1739734253200,0.03,188.37,188.34,28.63668008]
[1739734253398,0.03,188.37,188.34,33.94598008]
[1739734253709,0.03,188.37,188.32,20.59763155]
[1739734255617,0.03,188.37,188.34,15.22483155]
[1739734255910,0.03,188.37,188.35,15.22483155]
[1739734256627,0.03,188.37,188.35,9.74131534]
[1739734258014,0.03,188.37,188.36,5.3089]
[1739734258716,0.03,188.37,188.36,15.05021534]
[1739734258907,0.03,188.38,188.36,68.22356245]
[1739734259103,0.03,188.46,188.43,9.74131534]
[1739734259407,0.03,188.46,188.42,9.74131534]
[1739734259608,0.03,188.46,188.41,9.74131534]
[1739734259809,9.77131534,188.46,188.39,9.74131534]
[1739734260113,9.74131534,188.44,188.37,23.15316387]
[1739734260497,1.5073,188.45,188.37,13.41184853]
[1739734260897,1.5073,188.45,188.39,15.21151498]
[1739734261509,1.5073,188.45,188.4,15.21151498]
[1739734261695,0.03,188.46,188.42,15.21151498]
[1739734261900,0.03,188.46,188.44,5.3067]
[1739734262918,0.03,188.46,188.44,20.51821498]